Workbook

Sheet Page 1 - Table 1
C3: CRESCENT REALTY
C5: Alex Galuz
C6: Keller Williams
C7: 23975 Park Sorrento, Suite 110
C8: Calabasas, CA. 91302
C9: Tel: 310-466-0888
C10: email: alex@galuzgroup.com
C11: www.galuzgroup.com
C12: Property Address: | D12: 14827 Victory Blvd.
D13: Van Nuys CA 91411
C15: LIST PRICE | D15: 4950000
C20: INVESTMENT SUMMARY | I20: INVESTMENT HIGHLIGHT
I21: Good unit mix with low maintenance
C22: Down Payment: | D22: =D15*E22 -> 1980000 | E22: 0.4 | I22: New Construction Central Valley Location
C23: Year Built | D23: 2020 | I23: Non Rent Control
C24: Zoning | D24: LAR3 | I24: SCHEDULED INCOME | M24: Current | O24: Proforma
C25: Units | D25: 9 | I25: Units | J25: Beds | K25: Baths | L25: Units S.F | M25: Rent Average | N25: Monthly Income | O25: Rent | P25: Monthly Income
C26: Appx. Lot Size: | D26: 6534 | E26: SQ. FT | I26: 1 | J26: 1 | K26: 1 | L26: 588 | M26: 2250 | N26: =M26*I26 -> 2250 | O26: 2300 | P26: 2300
C27: Appx. Bldg NRSF: | D27: 14279 | E27: SQ. FT | I27: 3 | J27: 3 | K27: 3.5 | L27: 1350 | M27: 3400 | N27: =M27*I27 -> 10200 | O27: 3600 | P27: 10800
C28: Cost per NRSF: | D28: =D15/D27 -> 346.6629316 | I28: 2 | J28: 3 | K28: 2 | L28: 1350 | M28: 3500 | N28: =M28*I28 -> 7000 | O28: 3600 | P28: 7200
C29: Cost per Unit: | D29: =D15/D25 -> 550000 | I29: 3 | J29: 4 | K29: 3 | L29: 1650 | M29: 3600 | N29: 10800 | O29: 3950 | P29: 11850
C30: Expense/ NRSF: | D30: =P52/D27 -> 7.236567372
C31: Expense/ Unit: | D31: =P52/D25 -> 11481.21617 | I31: Total Schedule Rent: | N31: =SUM(N26:N30) -> 30250 | P31: =SUM(P26:P30) -> 32150
D32: Current | E32: Pro Forma | I32: Laundry:
C33: GRM: | D33: =D15/N35 -> 13.63636364 | E33: =D15/P35 -> 12.83048212 | I33: Other Income:
C34: CAP: | D34: =E45/D15 -> 0.05025839485 | E34: =J45/D15 -> 0.05472627364 | I34: Monthly Gross Income: | N34: =N31+N32+N33 -> 30250 | P34: =P31+P32+P33 -> 32150
C35: ROI: | D35: =E49/D22 -> 0.04042723089 | E35: =J49/D22 -> 0.05159692786 | I35: Annual Gross Income: | N35: =N34*12 -> 363000 | P35: =P34*12 -> 385800
C39: ANNUAL INCOME | N39: ESTIMATED ANNUAL EXPENSE
E40: Current | J40: Pro Forma | N40: ITEM | P40: AMOUNT
C41: Scheduled Gross Income: | E41: =N35 -> 363000 | J41: =P35 -> 385800 | N41: Taxes: | P41: =D15*0.01245849 -> 61669.5255
C42: Less Vacancy Reserve Rate: | E42: =E41*F42 -> 10890 | F42: 0.03 | I42: * | J42: =J41*L42 -> 11574 | L42: 0.03 | N42: Insurance: | P42: =0.45*D27 -> 6425.55
C43: Gross Operating Income: | E43: =E41-E42 -> 352110 | F43: =E43/E41 -> 0.97 | J43: =J41-J42 -> 374226 | L43: =J43/J41 -> 0.97 | N43: Utilities: | P43: 13285.87
C44: Less Expenses: | E44: =P52 -> 103330.9455 | F44: =E44/E41 -> 0.2846582521 | I44: * | J44: =P52 -> 103330.9455 | L44: =J44/J41 -> 0.2678355249 | N44: Maintenance & Repair's: | P44: 4500
C45: Net Operating Income: | E45: =E43-E44 -> 248779.0545 | F45: =E45/E41 -> 0.6853417479 | J45: =J43-J44 -> 270895.0545 | L45: =J45/J41 -> 0.7021644751 | N45: Trash: | P45: 3750
C46: Less Debt Service: | E46: =J54*12 -> 207985.366 | F46: =E46/E41 -> 0.5729624409 | J46: =J54*12 -> 207985.366 | L46: =J46/J41 -> 0.539101519 | N46: Pest: | P46: 1200
C47: Pre-Tax Cash Flow: | E47: =E45-E46 -> 40793.68846 | F47: =E47/D53 -> 0.02060287296 | I47: ** | J47: =J45-J46 -> 62909.68846 | L47: =J47/D53 -> 0.03177256993 | N47: Gardener/Grounds: | P47: 1200
C48: Plus Principal Reduction: | E48: =PPMT(J53,1,J52,-D54) -> 39252.22869 | F48: =E48/D53 -> 0.01982435793 | J48: =PPMT(J53,1,J52,-D54) -> 39252.22869 | L48: =J48/D53 -> 0.01982435793 | N48: Misc/Reserves: | P48: 4000
C49: Total Return Before Taxes: | E49: =E47+E48 -> 80045.91716 | F49: =E49/D53 -> 0.04042723089 | I49: ** | J49: =J47+J48 -> 102161.9172 | L49: =J49/D53 -> 0.05159692786 | N49: Management: | P49: 7300
C50: *As a Percent of Scheduled Gross Income ** As a Percent of Down Payment
C51: FINANCING INFORMATION
C52: Price: | D52: =D15 -> 4950000 | F52: Terms: | J52: 30 | K52: Year | N52: TOTAL EXPENSES: | P52: =SUM(P41,P42:P51) -> 103330.9455
C53: Down Payment: | D53: =D22 -> 1980000 | F53: Interest Rate: | J53: 0.0575 | N53: Expense / NRSF: | P53: =P52/D27 -> 7.236567372
C54: Loan Amount: | D54: =D52-D53 -> 2970000 | F54: Monthly Payment: | J54: =PMT(J53/12,J52*12,-D54) -> 17332.11384 | N54: Expense / Unit: | P54: =P52/D25 -> 11481.21617
C56: This information has been secured from sources we believe to be reliable, but we make no representation or warranties, expressed or implied as to the accuracy of the information
C57: References to square footage or age are approximate. Buyer must independently verify the information and bears all risks for any accurancies. Expenses are estimates.

Sheet Page 2 Rent Roll - Table 1
C3: CRESCENT REALTY
C20: NOTES | I20: RENT ROLL
I22: Unit # | J22: Unit Mix | L22: Current Rent | N22: Market Rent | P22: SqFt.
I23: 1 | J23: 4+3 | L23: 3525 | N23: 3995 | P23: 1867
I24: 2 | J24: 3+3.5 | L24: 3725 | N24: 3799 | P24: 1508
I25: 3 | J25: 3+3.5 | L25: 3395 | N25: 3500 | P25: 1168
I26: 4 | J26: 3+2.5 | L26: 3295 | N26: 3600 | P26: 1314
I27: 5 | J27: 3+2.5 | L27: 3495 | N27: 3600 | P27: 1133
I28: 6 | J28: 4+2.5 | L28: 3595 | N28: 3900 | P28: 1434
I29: 7 | J29: 1+1 | L29: 2248 | N29: 2300 | P29: 588
I30: 8 | J30: 4+3.5 | L30: 3925 | N30: 3925 | P30: 1624
I31: 9 | J31: 3+2.5 | L31: 3515 | N31: 3700 | P31: 1587
L54: =SUM(L23:M45) -> 30718 | N54: =SUM(N23:N45) -> 32319
